[Event "*** Titled Tuesday Blitz"]
[Site "Chess.com"]
[Date "2020.05.12"]
[Round "6"]
[White "Orest_Vovk"]
[Black "bascheyaro"]
[Result "0-1"]
[WhiteElo "2448"]
[BlackElo "2712"]
[TimeControl "180+1"]
[EndTime "11:07:00 PDT"]
[Termination "bascheyaro won on time"]

1. e4 {[%clk 0:03:00.9]} 1... e6 {[%clk 0:01:34.5]} 2. Be2 {[%clk 0:03:00.4]}
2... d5 {[%clk 0:01:34.8]} 3. d3 {[%clk 0:03:00.6]} 3... Nf6 {[%clk 0:01:34.9]}
4. Nd2 {[%clk 0:02:43.4]} 4... c5 {[%clk 0:01:34]} 5. f4 {[%clk 0:02:39.1]} 5...
dxe4 {[%clk 0:01:33.3]} 6. Nxe4 {[%clk 0:02:37.4]} 6... Nxe4 {[%clk 0:01:31.8]}
7. dxe4 {[%clk 0:02:37.4]} 7... Qxd1+ {[%clk 0:01:32.7]} 8. Bxd1 {[%clk
0:02:37.8]} 8... b6 {[%clk 0:01:32.7]} 9. c3 {[%clk 0:02:25.2]} 9... Bb7 {[%clk
0:01:32.9]} 10. Bc2 {[%clk 0:02:19.4]} 10... f5 {[%clk 0:01:32.2]} 11. Nf3
{[%clk 0:02:15.8]} 11... fxe4 {[%clk 0:01:22.3]} 12. Ng5 {[%clk 0:02:15.4]}
12... Bd6 {[%clk 0:01:18.3]} 13. Bxe4 {[%clk 0:02:08.9]} 13... Bxe4 {[%clk
0:01:11.6]} 14. Nxe4 {[%clk 0:02:08.8]} 14... Ke7 {[%clk 0:01:12.1]} 15. O-O
{[%clk 0:02:05.8]} 15... Nc6 {[%clk 0:01:12.2]} 16. f5 {[%clk 0:01:52.8]} 16...
exf5 {[%clk 0:01:10.7]} 17. Rxf5 {[%clk 0:01:47.4]} 17... Rhf8 {[%clk
0:01:04.8]} 18. Bg5+ {[%clk 0:01:40.1]} 18... Ke6 {[%clk 0:01:04.9]} 19. Rxf8
{[%clk 0:01:40.2]} 19... Rxf8 {[%clk 0:01:04.3]} 20. Nxd6 {[%clk 0:01:27.3]}
20... Kxd6 {[%clk 0:01:05.2]} 21. Rd1+ {[%clk 0:01:27.3]} 21... Kc7 {[%clk
0:01:05.5]} 22. g3 {[%clk 0:01:25.5]} 22... Rf7 {[%clk 0:01:01.9]} 23. Bf4+
{[%clk 0:01:19.7]} 23... Kc8 {[%clk 0:01:01.8]} 24. Rd6 {[%clk 0:01:12.2]} 24...
Na5 {[%clk 0:01:00.7]} 25. b4 {[%clk 0:01:07.9]} 25... Nc4 {[%clk 0:00:59.1]}
26. Rd5 {[%clk 0:01:00.5]} 26... cxb4 {[%clk 0:00:56.4]} 27. cxb4 {[%clk
0:01:01.4]} 27... Kb7 {[%clk 0:00:53.2]} 28. a4 {[%clk 0:00:57.1]} 28... Kc6
{[%clk 0:00:46.9]} 29. Rd8 {[%clk 0:00:53.6]} 29... Nb2 {[%clk 0:00:37.1]} 30.
a5 {[%clk 0:00:27.1]} 30... Kb5 {[%clk 0:00:31.1]} 31. axb6 {[%clk 0:00:22.2]}
31... axb6 {[%clk 0:00:32]} 32. Bd2 {[%clk 0:00:13.3]} 32... Nc4 {[%clk
0:00:32.1]} 33. Bc3 {[%clk 0:00:12.2]} 33... Ne3 {[%clk 0:00:32.2]} 34. h4
{[%clk 0:00:07.8]} 34... Kc4 {[%clk 0:00:32.4]} 35. Bd2 {[%clk 0:00:06.3]} 35...
Rf1+ {[%clk 0:00:28.6]} 36. Kh2 {[%clk 0:00:06.1]} 36... Ng4+ {[%clk 0:00:26.7]}
37. Kg2 {[%clk 0:00:02.7]} 37... Rf2+ {[%clk 0:00:26.6]} 38. Kg1 {[%clk
0:00:03.4]} 38... Rf7 {[%clk 0:00:24.7]} 39. Rc8+ {[%clk 0:00:02]} 39... Kd3
{[%clk 0:00:25]} 40. Rd8+ {[%clk 0:00:02.3]} 40... Ke2 {[%clk 0:00:25.1]} 41.
Bf4 {[%clk 0:00:02.8]} 41... Ra7 {[%clk 0:00:20.5]} 42. Rd2+ {[%clk 0:00:02.7]}
42... Kf3 {[%clk 0:00:20.8]} 43. Rd3+ {[%clk 0:00:03.1]} 43... Ke4 {[%clk
0:00:21.1]} 44. Rd6 {[%clk 0:00:03.5]} 44... Ra1+ {[%clk 0:00:21.2]} 45. Kg2
{[%clk 0:00:03.9]} 45... Ra2+ {[%clk 0:00:21.6]} 46. Kg1 {[%clk 0:00:03.6]}
46... h5 {[%clk 0:00:21.7]} 47. Rxb6 {[%clk 0:00:02.6]} 47... Kf3 {[%clk
0:00:22.1]} 48. Rc6 {[%clk 0:00:02.7]} 48... Ra1+ {[%clk 0:00:22.2]} 49. Rc1
{[%clk 0:00:02.3]} 49... Ra2 {[%clk 0:00:21.5]} 50. Rf1+ {[%clk 0:00:02.9]}
50... Nf2 {[%clk 0:00:21.6]} 51. Re1 {[%clk 0:00:03.7]} 51... Nh3+ {[%clk
0:00:21.6]} 52. Kh1 {[%clk 0:00:02.8]} 52... Kg4 {[%clk 0:00:21.1]} 53. Rd1
{[%clk 0:00:01.9]} 53... Nf2+ {[%clk 0:00:20.6]} 54. Kg1 {[%clk 0:00:01.5]}
54... Nxd1 {[%clk 0:00:21.5]} 0-1

[Event "*** Titled Tuesday Blitz"]
[Site "Chess.com"]
[Date "2020.05.12"]
[Round "6"]
[White "Morshynska"]
[Black "Kolle05"]
[Result "0-1"]
[WhiteElo "2171"]
[BlackElo "2385"]
[TimeControl "180+1"]
[EndTime "11:07:01 PDT"]
[Termination "Kolle05 won by checkmate"]

1. e4 {[%clk 0:03:00.9]} 1... c5 {[%clk 0:02:57.5]} 2. Nf3 {[%clk 0:03:00.2]}
2... d6 {[%clk 0:02:57.5]} 3. c3 {[%clk 0:02:59.9]} 3... Nf6 {[%clk 0:02:56.1]}
4. Bd3 {[%clk 0:02:57.9]} 4... Nc6 {[%clk 0:02:52.9]} 5. O-O {[%clk 0:02:57.1]}
5... e5 {[%clk 0:02:50.5]} 6. Bc2 {[%clk 0:02:56.3]} 6... Be7 {[%clk 0:02:46]}
7. h3 {[%clk 0:02:52.3]} 7... O-O {[%clk 0:02:44.8]} 8. d4 {[%clk 0:02:50.9]}
8... b5 {[%clk 0:02:40.4]} 9. Be3 {[%clk 0:02:40.1]} 9... Qc7 {[%clk 0:02:35.5]}
10. Nbd2 {[%clk 0:02:39.3]} 10... a5 {[%clk 0:02:30.1]} 11. Rc1 {[%clk
0:01:55.7]} 11... Ba6 {[%clk 0:02:27.5]} 12. Re1 {[%clk 0:01:55.1]} 12... Rfc8
{[%clk 0:01:50.1]} 13. a3 {[%clk 0:01:54.5]} 13... b4 {[%clk 0:01:38.3]} 14.
cxb4 {[%clk 0:01:49]} 14... axb4 {[%clk 0:01:39.2]} 15. dxc5 {[%clk 0:01:40.8]}
15... dxc5 {[%clk 0:01:38]} 16. Bb3 {[%clk 0:01:34.3]} 16... bxa3 {[%clk
0:00:55.4]} 17. bxa3 {[%clk 0:01:35.2]} 17... Qa5 {[%clk 0:00:49]} 18. Bd5
{[%clk 0:00:51.7]} 18... Qxa3 {[%clk 0:00:17.4]} 19. Ra1 {[%clk 0:00:34.5]}
19... Qb4 {[%clk 0:00:13.2]} 20. Ng5 {[%clk 0:00:28]} 20... Nxd5 {[%clk
0:00:10.6]} 21. exd5 {[%clk 0:00:26.4]} 21... Nd4 {[%clk 0:00:10.7]} 22. Nge4
{[%clk 0:00:19.5]} 22... Bd3 {[%clk 0:00:08.7]} 23. d6 {[%clk 0:00:19.2]} 23...
Bd8 {[%clk 0:00:08.2]} 24. Qg4 {[%clk 0:00:18.6]} 24... f5 {[%clk 0:00:07.4]}
25. Qh5 {[%clk 0:00:17.1]} 25... Bf6 {[%clk 0:00:06.2]} 26. Nxf6+ {[%clk
0:00:16]} 26... gxf6 {[%clk 0:00:07.1]} 27. Bh6 {[%clk 0:00:15.2]} 27... Qb7
{[%clk 0:00:05.5]} 28. Rxa8 {[%clk 0:00:13.7]} 28... Rxa8 {[%clk 0:00:05]} 29.
Nf3 {[%clk 0:00:11.4]} 29... Qf7 {[%clk 0:00:03.9]} 30. Qxf7+ {[%clk 0:00:10.6]}
30... Kxf7 {[%clk 0:00:04.8]} 31. Nd2 {[%clk 0:00:09.4]} 31... Rd8 {[%clk
0:00:03.6]} 32. f4 {[%clk 0:00:08.8]} 32... Rxd6 {[%clk 0:00:03.3]} 33. fxe5
{[%clk 0:00:09]} 33... fxe5 {[%clk 0:00:03]} 34. g4 {[%clk 0:00:09.9]} 34...
fxg4 {[%clk 0:00:02.4]} 35. Be3 {[%clk 0:00:09.3]} 35... c4 {[%clk 0:00:01.7]}
36. Ne4 {[%clk 0:00:09]} 36... Ke6 {[%clk 0:00:01.7]} 37. Nxd6 {[%clk
0:00:08.9]} 37... Kxd6 {[%clk 0:00:02.6]} 38. hxg4 {[%clk 0:00:09.2]} 38... Kd5
{[%clk 0:00:02.4]} 39. Bxd4 {[%clk 0:00:08.9]} 39... exd4 {[%clk 0:00:02.4]} 40.
Kf2 {[%clk 0:00:09.8]} 40... c3 {[%clk 0:00:02.7]} 41. Rc1 {[%clk 0:00:10]}
41... Kc4 {[%clk 0:00:03]} 42. Ke1 {[%clk 0:00:10.5]} 42... Bg6 {[%clk
0:00:03.2]} 43. Kd1 {[%clk 0:00:10.2]} 43... d3 {[%clk 0:00:03.5]} 44. Ra1
{[%clk 0:00:10]} 44... Be4 {[%clk 0:00:03.4]} 45. Ra7 {[%clk 0:00:09.6]} 45...
Bf3+ {[%clk 0:00:02.9]} 46. Kc1 {[%clk 0:00:10]} 46... d2+ {[%clk 0:00:03.4]}
47. Kb1 {[%clk 0:00:09.8]} 47... d1=Q+ {[%clk 0:00:04.3]} 48. Ka2 {[%clk
0:00:10.7]} 48... Qb3+ {[%clk 0:00:04.4]} 49. Ka1 {[%clk 0:00:10.2]} 49... Qb2#
{[%clk 0:00:05.3]} 0-1

[Event "*** Titled Tuesday Blitz"]
[Site "Chess.com"]
[Date "2020.05.12"]
[Round "6"]
[White "zmeeed67"]
[Black "konradrutkowski"]
[Result "0-1"]
[WhiteElo "2415"]
[BlackElo "2275"]
[TimeControl "180+1"]
[EndTime "11:07:05 PDT"]
[Termination "konradrutkowski won by resignation"]

1. d4 {[%clk 0:03:00.9]} 1... Nf6 {[%clk 0:02:59.6]} 2. c4 {[%clk 0:03:00.5]}
2... g6 {[%clk 0:02:59.5]} 3. Nc3 {[%clk 0:03:00.8]} 3... Bg7 {[%clk 0:03:00]}
4. Nf3 {[%clk 0:03:00.8]} 4... O-O {[%clk 0:03:00.4]} 5. Bg5 {[%clk 0:03:01.3]}
5... d6 {[%clk 0:03:00.4]} 6. e3 {[%clk 0:03:01.6]} 6... Nc6 {[%clk 0:02:56.1]}
7. d5 {[%clk 0:03:00.3]} 7... Nb4 {[%clk 0:02:45.2]} 8. a3 {[%clk 0:02:50.8]}
8... Na6 {[%clk 0:02:45.1]} 9. Nd4 {[%clk 0:02:14.4]} 9... Nc5 {[%clk
0:02:21.9]} 10. Qc2 {[%clk 0:02:13.9]} 10... e5 {[%clk 0:02:21.5]} 11. dxe6
{[%clk 0:02:07.8]} 11... Nxe6 {[%clk 0:02:21.2]} 12. Nxe6 {[%clk 0:02:07.8]}
12... Bxe6 {[%clk 0:02:21.5]} 13. Be2 {[%clk 0:02:06.8]} 13... Qd7 {[%clk
0:01:46.7]} 14. Rd1 {[%clk 0:01:46.2]} 14... Rfe8 {[%clk 0:01:41.6]} 15. O-O
{[%clk 0:01:37.4]} 15... Bf5 {[%clk 0:01:39.2]} 16. Qc1 {[%clk 0:01:12.1]} 16...
Ne4 {[%clk 0:01:34.5]} 17. Nxe4 {[%clk 0:01:12.3]} 17... Bxe4 {[%clk 0:01:35.2]}
18. h3 {[%clk 0:01:12.5]} 18... Qf5 {[%clk 0:00:52.5]} 19. Bf4 {[%clk
0:01:04.8]} 19... h5 {[%clk 0:00:34.3]} 20. b4 {[%clk 0:00:56.7]} 20... b6
{[%clk 0:00:30.4]} 21. c5 {[%clk 0:00:51]} 21... bxc5 {[%clk 0:00:19.9]} 22.
bxc5 {[%clk 0:00:51.9]} 22... Qxc5 {[%clk 0:00:19.4]} 23. Qxc5 {[%clk 0:00:51]}
23... dxc5 {[%clk 0:00:20.3]} 24. Rc1 {[%clk 0:00:23.2]} 24... Bf8 {[%clk
0:00:18.2]} 25. Ba6 {[%clk 0:00:11.9]} 25... Bd6 {[%clk 0:00:15]} 26. Rfd1
{[%clk 0:00:10.6]} 26... Red8 {[%clk 0:00:12.3]} 27. Bg5 {[%clk 0:00:09.7]}
27... Rdb8 {[%clk 0:00:11.4]} 28. f3 {[%clk 0:00:08.1]} 28... Bc6 {[%clk
0:00:09.2]} 29. e4 {[%clk 0:00:07.5]} 29... Rb3 {[%clk 0:00:08.7]} 30. Rd3
{[%clk 0:00:05]} 30... Rab8 {[%clk 0:00:07.8]} 31. Be3 {[%clk 0:00:03.6]} 31...
Rxd3 {[%clk 0:00:07.5]} 32. Bxd3 {[%clk 0:00:04.5]} 32... Rb3 {[%clk 0:00:07.4]}
33. Rd1 {[%clk 0:00:04.9]} 33... c4 {[%clk 0:00:06.1]} 34. Bxc4 {[%clk
0:00:01.5]} 34... Rxe3 {[%clk 0:00:06.5]} 35. Rc1 {[%clk 0:00:02.4]} 35... Rxa3
{[%clk 0:00:05.8]} 36. Rb1 {[%clk 0:00:02.5]} 36... Bc5+ {[%clk 0:00:02.9]} 37.
Kh2 {[%clk 0:00:02.5]} 37... Bb6 {[%clk 0:00:03.8]} 38. Rd1 {[%clk 0:00:02]}
38... Kg7 {[%clk 0:00:04.3]} 39. Rd8 {[%clk 0:00:02]} 39... Rc3 {[%clk
0:00:04.4]} 40. Bf1 {[%clk 0:00:02.2]} 40... a5 {[%clk 0:00:04.3]} 41. Ba6
{[%clk 0:00:02.5]} 41... Rc1 {[%clk 0:00:03.9]} 42. Rd2 {[%clk 0:00:03]} 42...
h4 {[%clk 0:00:04]} 43. g3 {[%clk 0:00:02.5]} 43... hxg3+ {[%clk 0:00:02.6]} 44.
Kxg3 {[%clk 0:00:03.4]} 44... Bc5 {[%clk 0:00:03.1]} 45. Rd8 {[%clk 0:00:03]}
45... Bd6+ {[%clk 0:00:04]} 46. Kf2 {[%clk 0:00:03.3]} 46... Bb4 {[%clk
0:00:04.6]} 47. Bd3 {[%clk 0:00:02.8]} 47... a4 {[%clk 0:00:05.5]} 48. Rb8
{[%clk 0:00:02.6]} 48... a3 {[%clk 0:00:06.4]} 49. Rxb4 {[%clk 0:00:02.3]} 49...
a2 {[%clk 0:00:06.7]} 50. Rc4 {[%clk 0:00:02.2]} 50... a1=Q {[%clk 0:00:07.6]}
0-1

[Event "*** Titled Tuesday Blitz"]
[Site "Chess.com"]
[Date "2020.05.12"]
[Round "6"]
[White "IMTominho"]
[Black "GelmanAlexander"]
[Result "0-1"]
[WhiteElo "2830"]
[BlackElo "2582"]
[TimeControl "180+1"]
[EndTime "11:07:06 PDT"]
[Termination "GelmanAlexander won by resignation"]

1. d4 {[%clk 0:03:00.9]} 1... Nf6 {[%clk 0:02:59.6]} 2. Bg5 {[%clk 0:02:56.2]}
2... c5 {[%clk 0:02:59.4]} 3. Bxf6 {[%clk 0:02:45.7]} 3... gxf6 {[%clk
0:03:00.3]} 4. dxc5 {[%clk 0:02:45.6]} 4... e6 {[%clk 0:02:44.1]} 5. e3 {[%clk
0:02:41.7]} 5... b6 {[%clk 0:02:36.7]} 6. cxb6 {[%clk 0:02:38.1]} 6... Qxb6
{[%clk 0:02:36.6]} 7. Qc1 {[%clk 0:02:31.5]} 7... Bb7 {[%clk 0:02:31.9]} 8. Nd2
{[%clk 0:02:24.5]} 8... Rg8 {[%clk 0:02:29.4]} 9. Ngf3 {[%clk 0:02:24.1]} 9...
Nc6 {[%clk 0:02:24.1]} 10. g3 {[%clk 0:02:02.6]} 10... Rc8 {[%clk 0:02:22.1]}
11. Be2 {[%clk 0:01:49.6]} 11... h5 {[%clk 0:01:35.9]} 12. O-O {[%clk
0:01:45.5]} 12... h4 {[%clk 0:01:14.4]} 13. Nc4 {[%clk 0:01:08.6]} 13... Qc5
{[%clk 0:01:09.9]} 14. Nxh4 {[%clk 0:01:05.7]} 14... d5 {[%clk 0:00:58.2]} 15.
Nd2 {[%clk 0:01:03.5]} 15... d4 {[%clk 0:00:57.5]} 16. Nb3 {[%clk 0:00:49.9]}
16... Qg5 {[%clk 0:00:36.2]} 17. Nf3 {[%clk 0:00:48.8]} 17... Qh6 {[%clk
0:00:30.8]} 18. exd4 {[%clk 0:00:45.9]} 18... Qh3 {[%clk 0:00:30.3]} 19. Re1
{[%clk 0:00:31.6]} 19... Rh8 {[%clk 0:00:25.9]} 20. Bf1 {[%clk 0:00:26.8]} 20...
Qh5 {[%clk 0:00:25.9]} 21. Bg2 {[%clk 0:00:26.7]} 21... Nb4 {[%clk 0:00:24]} 22.
d5 {[%clk 0:00:12.4]} 22... Nxc2 {[%clk 0:00:18.9]} 23. Qf4 {[%clk 0:00:06.1]}
23... Nxa1 {[%clk 0:00:14.5]} 24. Qa4+ {[%clk 0:00:05.4]} 24... Kd8 {[%clk
0:00:12.5]} 25. Qa5+ {[%clk 0:00:05.3]} 25... Rc7 {[%clk 0:00:10.9]} 26. Rxa1
{[%clk 0:00:02.6]} 26... Qxd5 {[%clk 0:00:08.7]} 27. Qe1 {[%clk 0:00:01.3]}
27... Ke8 {[%clk 0:00:07.1]} 28. Rd1 {[%clk 0:00:02.2]} 28... Qe4 {[%clk
0:00:07.1]} 29. Nbd4 {[%clk 0:00:02.9]} 29... Qxe1+ {[%clk 0:00:06.6]} 30. Rxe1
{[%clk 0:00:03.6]} 30... Bc5 {[%clk 0:00:07.2]} 31. Nb3 {[%clk 0:00:03.1]} 31...
Bb6 {[%clk 0:00:07.2]} 32. Nfd2 {[%clk 0:00:03.5]} 32... Bxg2 {[%clk 0:00:07]}
33. Kxg2 {[%clk 0:00:04.4]} 33... Rc2 {[%clk 0:00:07.4]} 34. Ne4 {[%clk
0:00:04.8]} 34... Rxb2 {[%clk 0:00:07.1]} 35. Nxf6+ {[%clk 0:00:04.3]} 35... Ke7
{[%clk 0:00:07.7]} 36. Ng4 {[%clk 0:00:04.7]} 36... Rxa2 {[%clk 0:00:05.9]} 37.
Ne3 {[%clk 0:00:03.8]} 37... a5 {[%clk 0:00:05.6]} 38. Kg1 {[%clk 0:00:01.7]}
38... a4 {[%clk 0:00:05.4]} 39. Nc1 {[%clk 0:00:02.2]} 39... Rb2 {[%clk
0:00:03.8]} 40. Nc4 {[%clk 0:00:02.5]} 40... Bxf2+ {[%clk 0:00:01.7]} 41. Kf1
{[%clk 0:00:01.9]} 41... Bxe1 {[%clk 0:00:02.1]} 42. Nxb2 {[%clk 0:00:02.5]}
42... a3 {[%clk 0:00:02.5]} 43. Nc4 {[%clk 0:00:03]} 43... Bb4 {[%clk
0:00:02.4]} 44. Nd3 {[%clk 0:00:03.9]} 44... a2 {[%clk 0:00:02.3]} 45. Nxb4
{[%clk 0:00:03.7]} 45... a1=Q+ {[%clk 0:00:02.8]} 46. Ke2 {[%clk 0:00:04.6]}
46... Qh1 {[%clk 0:00:01.6]} 47. Kd3 {[%clk 0:00:04]} 47... Qxh2 {[%clk
0:00:02.3]} 48. Kc3 {[%clk 0:00:04.7]} 48... Rd8 {[%clk 0:00:02.9]} 49. Nd3
{[%clk 0:00:05.2]} 49... Qxg3 {[%clk 0:00:03.5]} 50. Ne5 {[%clk 0:00:05.5]}
50... Rxd3+ {[%clk 0:00:04.2]} 51. Nxd3 {[%clk 0:00:05.5]} 51... Qxd3+ {[%clk
0:00:04.7]} 52. Kxd3 {[%clk 0:00:05.6]} 52... Kd6 {[%clk 0:00:05.6]} 53. Ke4
{[%clk 0:00:06.5]} 53... e5 {[%clk 0:00:06.3]} 54. Kf5 {[%clk 0:00:06.7]} 54...
Kd5 {[%clk 0:00:06.8]} 55. Kf6 {[%clk 0:00:07.3]} 55... e4 {[%clk 0:00:07.4]}
56. Kxf7 {[%clk 0:00:08.2]} 56... e3 {[%clk 0:00:08.1]} 0-1

[Event "*** Titled Tuesday Blitz"]
[Site "Chess.com"]
[Date "2020.05.12"]
[Round "6"]
[White "Abund"]
[Black "PotapovaM"]
[Result "1-0"]
[WhiteElo "2628"]
[BlackElo "2421"]
[TimeControl "180+1"]
[EndTime "11:07:06 PDT"]
[Termination "Abund won by resignation"]

1. d4 {[%clk 0:03:00.9]} 1... Nf6 {[%clk 0:02:59.3]} 2. c4 {[%clk 0:02:59.1]}
2... g6 {[%clk 0:02:57.6]} 3. Nc3 {[%clk 0:02:56.3]} 3... d5 {[%clk 0:02:57.8]}
4. cxd5 {[%clk 0:02:55.7]} 4... Nxd5 {[%clk 0:02:58.7]} 5. Nf3 {[%clk
0:02:54.5]} 5... Bg7 {[%clk 0:02:58.7]} 6. Bd2 {[%clk 0:02:54.3]} 6... O-O
{[%clk 0:02:58.6]} 7. e4 {[%clk 0:02:54]} 7... Nb6 {[%clk 0:02:57.1]} 8. Be3
{[%clk 0:02:52.4]} 8... Nc6 {[%clk 0:02:49.6]} 9. Be2 {[%clk 0:02:44.6]} 9...
Bg4 {[%clk 0:02:48.8]} 10. d5 {[%clk 0:02:44.1]} 10... Bxf3 {[%clk 0:02:39.4]}
11. gxf3 {[%clk 0:02:43.9]} 11... Ne5 {[%clk 0:02:35.8]} 12. Bd4 {[%clk
0:02:25.6]} 12... g5 {[%clk 0:00:56.2]} 13. Rg1 {[%clk 0:02:05.7]} 13... e6
{[%clk 0:00:42.4]} 14. f4 {[%clk 0:01:58.7]} 14... Ng6 {[%clk 0:00:26.4]} 15.
Bxg7 {[%clk 0:01:29.8]} 15... Kxg7 {[%clk 0:00:27.3]} 16. Qd4+ {[%clk
0:01:19.9]} 16... Qf6 {[%clk 0:00:25.7]} 17. Qxf6+ {[%clk 0:01:17.5]} 17... Kxf6
{[%clk 0:00:26.6]} 18. fxg5+ {[%clk 0:01:17.3]} 18... Ke7 {[%clk 0:00:26.8]} 19.
O-O-O {[%clk 0:01:13.3]} 19... Nf4 {[%clk 0:00:26.4]} 20. Bf3 {[%clk 0:01:09.8]}
20... e5 {[%clk 0:00:25.5]} 21. Ne2 {[%clk 0:01:03.1]} 21... Ng6 {[%clk
0:00:22.5]} 22. Ng3 {[%clk 0:01:01]} 22... Nc4 {[%clk 0:00:17.9]} 23. Nf5+
{[%clk 0:00:58.6]} 23... Ke8 {[%clk 0:00:12.4]} 24. Ng7+ {[%clk 0:00:44.8]}
24... Ke7 {[%clk 0:00:12.4]} 25. Nf5+ {[%clk 0:00:40.5]} 25... Ke8 {[%clk
0:00:12.5]} 26. h4 {[%clk 0:00:38.8]} 26... Nd6 {[%clk 0:00:12]} 27. h5 {[%clk
0:00:38.6]} 27... Nf4 {[%clk 0:00:12.1]} 28. Bg4 {[%clk 0:00:32.1]} 28... Nxf5
{[%clk 0:00:09.9]} 29. Bxf5 {[%clk 0:00:30.4]} 29... Ne2+ {[%clk 0:00:09.6]} 30.
Kd2 {[%clk 0:00:30.5]} 30... Nxg1 {[%clk 0:00:10.5]} 31. Rxg1 {[%clk 0:00:31.3]}
31... Rh8 {[%clk 0:00:08.9]} 32. Rc1 {[%clk 0:00:31.1]} 32... c6 {[%clk
0:00:07.7]} 33. dxc6 {[%clk 0:00:30.4]} 33... bxc6 {[%clk 0:00:08.6]} 34. Rxc6
{[%clk 0:00:31]} 34... Ke7 {[%clk 0:00:08.1]} 35. Rc7+ {[%clk 0:00:30.6]} 35...
Kd6 {[%clk 0:00:08.5]} 36. Rxf7 {[%clk 0:00:27.7]} 36... Rhg8 {[%clk 0:00:09]}
37. g6 {[%clk 0:00:23.7]} 37... hxg6 {[%clk 0:00:09]} 38. hxg6 {[%clk
0:00:23.7]} 38... a5 {[%clk 0:00:09.3]} 39. g7 {[%clk 0:00:18]} 39... a4 {[%clk
0:00:08.3]} 40. Bh7 {[%clk 0:00:15.5]} 40... Rgd8 {[%clk 0:00:05.4]} 41. Ke3
{[%clk 0:00:10.2]} 41... Rab8 {[%clk 0:00:05]} 42. g8=Q {[%clk 0:00:10.1]} 42...
Rxg8 {[%clk 0:00:04.9]} 43. Bxg8 {[%clk 0:00:11]} 43... Rxg8 {[%clk 0:00:05.5]}
44. Ra7 {[%clk 0:00:09.8]} 44... Rb8 {[%clk 0:00:06.1]} 45. Ra6+ {[%clk
0:00:10.1]} 45... Ke7 {[%clk 0:00:05.3]} 46. Rxa4 {[%clk 0:00:08.6]} 46... Rxb2
{[%clk 0:00:05.1]} 47. Ra6 {[%clk 0:00:08.3]} 47... Rc2 {[%clk 0:00:04.9]} 48.
Kf3 {[%clk 0:00:08.3]} 48... Rd2 {[%clk 0:00:04.3]} 49. Kg3 {[%clk 0:00:08.2]}
49... Re2 {[%clk 0:00:04.8]} 50. f3 {[%clk 0:00:08.4]} 50... Rf2 {[%clk
0:00:03.5]} 51. Kxf2 {[%clk 0:00:08.5]} 1-0

[Event "*** Titled Tuesday Blitz"]
[Site "Chess.com"]
[Date "2020.05.12"]
[Round "6"]
[White "BikingBrian"]
[Black "fish7728"]
[Result "1-0"]
[WhiteElo "2247"]
[BlackElo "2044"]
[TimeControl "180+1"]
[EndTime "11:07:06 PDT"]
[Termination "BikingBrian won on time"]

1. d4 {[%clk 0:03:00.9]} 1... f6 {[%clk 0:02:23]} 2. e4 {[%clk 0:02:58.8]} 2...
e6 {[%clk 0:02:22.3]} 3. Nc3 {[%clk 0:02:57.1]} 3... b6 {[%clk 0:02:22.7]} 4.
Be3 {[%clk 0:02:55.2]} 4... Nh6 {[%clk 0:02:20.9]} 5. f3 {[%clk 0:02:54.7]} 5...
Nf7 {[%clk 0:02:19.9]} 6. Bd3 {[%clk 0:02:54.2]} 6... Be7 {[%clk 0:02:18]} 7.
Qd2 {[%clk 0:02:54.5]} 7... a6 {[%clk 0:02:16.2]} 8. Nge2 {[%clk 0:02:54.6]}
8... Bb7 {[%clk 0:02:15.9]} 9. O-O-O {[%clk 0:02:44.6]} 9... d6 {[%clk
0:02:15.7]} 10. g4 {[%clk 0:02:44.8]} 10... Nd7 {[%clk 0:02:14.5]} 11. h4 {[%clk
0:02:44.7]} 11... c5 {[%clk 0:02:09.9]} 12. d5 {[%clk 0:02:40.3]} 12... e5
{[%clk 0:02:03.5]} 13. Ng3 {[%clk 0:02:37.9]} 13... Qc7 {[%clk 0:01:58.4]} 14.
Nf5 {[%clk 0:02:36.5]} 14... Bf8 {[%clk 0:01:57.9]} 15. g5 {[%clk 0:02:33.5]}
15... O-O-O {[%clk 0:01:57.4]} 16. Qe2 {[%clk 0:02:19.1]} 16... b5 {[%clk
0:01:56.6]} 17. Bxb5 {[%clk 0:02:18.5]} 17... axb5 {[%clk 0:01:54.6]} 18. Nxb5
{[%clk 0:02:17.9]} 18... Qa5 {[%clk 0:01:50.8]} 19. Bd2 {[%clk 0:01:46.1]} 19...
Qxa2 {[%clk 0:01:44.3]} 20. Na3 {[%clk 0:01:46.2]} 20... Qa1+ {[%clk 0:01:28.8]}
21. Nb1 {[%clk 0:01:45.9]} 21... Qa6 {[%clk 0:01:27.8]} 22. Qe1 {[%clk
0:01:34.4]} 22... Nb6 {[%clk 0:01:26.6]} 23. Ba5 {[%clk 0:01:30.8]} 23... Rd7
{[%clk 0:01:26.1]} 24. Bxb6 {[%clk 0:01:25]} 24... Qxb6 {[%clk 0:01:25.7]} 25.
Rd3 {[%clk 0:01:24.8]} 25... c4 {[%clk 0:01:13.6]} 26. Ra3 {[%clk 0:01:20.4]}
26... fxg5 {[%clk 0:01:09.3]} 27. Ne3 {[%clk 0:01:14]} 27... Rc7 {[%clk
0:01:03.7]} 28. hxg5 {[%clk 0:01:09.3]} 28... Nxg5 {[%clk 0:01:02.2]} 29. Qg3
{[%clk 0:01:07.3]} 29... Be7 {[%clk 0:00:55.3]} 30. Nf5 {[%clk 0:01:07]} 30...
Bf6 {[%clk 0:00:46.7]} 31. Nc3 {[%clk 0:00:42.1]} 31... g6 {[%clk 0:00:36.4]}
32. Na4 {[%clk 0:00:40.5]} 32... Qb4 {[%clk 0:00:23.1]} 33. Ne3 {[%clk
0:00:34.1]} 33... c3 {[%clk 0:00:21.5]} 34. Nxc3 {[%clk 0:00:29.9]} 34... Nf7
{[%clk 0:00:14.3]} 35. Qe1 {[%clk 0:00:28.8]} 35... Bg5 {[%clk 0:00:13.3]} 36.
Kb1 {[%clk 0:00:22.4]} 36... Kb8 {[%clk 0:00:12.7]} 37. Rb3 {[%clk 0:00:22.6]}
37... Qd4 {[%clk 0:00:12.4]} 38. Nb5 {[%clk 0:00:20.1]} 38... Qxe3 {[%clk
0:00:11.5]} 39. Rxe3 {[%clk 0:00:19.2]} 39... Bxe3 {[%clk 0:00:11.9]} 40. Qxe3
{[%clk 0:00:19.5]} 40... Rc5 {[%clk 0:00:12.5]} 41. Nc3 {[%clk 0:00:17.5]} 41...
Rhc8 {[%clk 0:00:13]} 42. Rxh7 {[%clk 0:00:14.9]} 42... Nd8 {[%clk 0:00:12.3]}
43. Qd3 {[%clk 0:00:13.1]} 43... Rc4 {[%clk 0:00:12]} 44. Qe3 {[%clk 0:00:09.2]}
44... Rd4 {[%clk 0:00:11.3]} 45. Qe2 {[%clk 0:00:08.8]} 45... Rcc4 {[%clk
0:00:10.1]} 46. b3 {[%clk 0:00:08.2]} 46... Rc7 {[%clk 0:00:08.9]} 47. Nb5
{[%clk 0:00:07.4]} 47... Rxh7 {[%clk 0:00:08.2]} 48. Nxd4 {[%clk 0:00:07.7]}
48... Rh1+ {[%clk 0:00:06.9]} 49. Kb2 {[%clk 0:00:07.5]} 49... exd4 {[%clk
0:00:07.8]} 50. e5 {[%clk 0:00:07.7]} 50... dxe5 {[%clk 0:00:07.4]} 51. Qxe5+
{[%clk 0:00:08.6]} 51... Ka7 {[%clk 0:00:07.5]} 52. Qxd4+ {[%clk 0:00:09.5]}
52... Kb8 {[%clk 0:00:07.3]} 53. d6 {[%clk 0:00:10]} 53... Nc6 {[%clk
0:00:06.9]} 54. Qf6 {[%clk 0:00:09]} 54... Rh2 {[%clk 0:00:06.6]} 55. d7 {[%clk
0:00:08.6]} 55... Kc7 {[%clk 0:00:05.8]} 56. Qf4+ {[%clk 0:00:08.9]} 56... Kxd7
{[%clk 0:00:06]} 57. Qxh2 {[%clk 0:00:09.8]} 57... Nd4 {[%clk 0:00:05.5]} 58.
Qd2 {[%clk 0:00:10.7]} 1-0